fUST/lending_fUST_20260109
["ID","MTS","AMOUNT","RATE_DAILY","PERIOD"]
[401075948,1767905455860,-151.0,0.00030136,7]
[401075949,1767905455870,-500.0,0.00030136,8]
[401075950,1767905455879,-500.0,0.00030136,8]
[401075951,1767905455888,-500.0,0.00030136,8]
[401075952,1767905455897,-500.0,0.00030136,8]
[401075953,1767905455907,-550.88780484,0.00030136,8]
[401075954,1767905455916,-151.0,0.00030136,7]
[401075955,1767905455927,-500.0,0.00030136,30]
[401075956,1767905455936,-500.0,0.00030136,30]
[401075957,1767905455945,-500.0,0.00030136,30]
[401075958,1767905455954,-500.0,0.00030136,30]
[401075959,1767905455964,-500.0,0.00030136,30]
[401075960,1767905455974,-500.0,0.00030136,30]
[401075961,1767905455984,-500.0,0.00030136,30]
[401075962,1767905455994,-500.0,0.00030136,30]
[401075963,1767905456004,-500.0,0.00030136,30]
[401075964,1767905456013,-500.0,0.00030136,30]
[401075965,1767905456023,-500.0,0.00030136,30]
[401075966,1767905456032,-500.0,0.00030136,30]
[401075967,1767905456042,-500.0,0.00030136,30]
[401075968,1767905456051,-500.0,0.00030136,30]
[401075969,1767905456060,-601.4235728,0.00030136,30]
[401075970,1767905456070,-151.0,0.00030136,7]
[401075971,1767905456080,-151.0,0.00030136,7]
[401075972,1767905456089,-1000.0,0.00030136,2]
[401075973,1767905456098,-1000.0,0.00030136,2]
[401075974,1767905456110,-1000.0,0.00030136,2]
[401075975,1767905456119,-1000.0,0.00030136,2]
[401075976,1767905456129,-1000.0,0.00030136,2]
[401075977,1767905456139,-1000.0,0.00030136,2]
[401075978,1767905456149,-1000.0,0.00030136,2]
[401075979,1767905456158,-1000.0,0.00030136,2]
[401075980,1767905456168,-1000.0,0.00030136,2]
[401075981,1767905456178,-1000.0,0.00030136,2]
[401075982,1767905456187,-1000.0,0.00030136,2]
[401075983,1767905456196,-1000.0,0.00030136,2]
[401075984,1767905456206,-584.62852237,0.00030136,2]
[401075985,1767905456215,-151.0,0.00030136,7]
[401075986,1767905456225,-151.0,0.00030136,7]
[401075987,1767905456234,-151.0,0.00030136,7]
[401075988,1767905456244,-151.0,0.00030136,7]
[401075989,1767905456253,-191.68238698,0.00030136,7]
[401075990,1767905456263,-94.89000949,0.00030136,7]
[401075991,1767905456475,-174.258743,0.000249,7]
[401075992,1767905456484,-174.258743,0.00028344,7]
[401075993,1767905456494,-51.482514,0.00028344,7]
[401075994,1767905456589,-484.29175519,0.00023859,10]
[401075995,1767905456600,-4285.0657763,0.00023859,10]
[401075996,1767905456619,-5049.61246851,0.00023859,10]
[401075997,1767905456628,-174.258743,0.000249,7]
[401075998,1767905456637,-122.776229,0.00028344,7]
[401075999,1767905456646,-174.258743,0.00028344,7]
[401076000,1767905456656,-174.258743,0.00029645,7]
[401076001,1767905456665,-174.258743,0.00029645,7]
[401076002,1767905456674,-174.258743,0.00029645,7]
[401076003,1767905456683,-35976.17910447,0.00029987,2]
[401076004,1767905456693,-174.258743,0.0003005,7]
[401076005,1767905456703,-174.258743,0.0003005,7]
[401076006,1767905456713,-174.258743,0.0003005,7]
[401076007,1767905456722,-56.10999051,0.00030136,7]
[401076008,1767905456732,-249.858384,0.00030136,7]
[401076009,1767905456743,-500.001,0.00030136,2]
[401076010,1767905456752,-500.0,0.00030136,30]
[401076011,1767905456761,-500.0,0.00030136,30]
[401076012,1767905456770,-500.0,0.00030136,30]
[401076013,1767905456779,-500.0,0.00030136,30]
[401076014,1767905456789,-500.0,0.00030136,30]
[401076015,1767905456798,-500.0,0.00030136,30]
[401076016,1767905456808,-500.0,0.00030136,30]
[401076017,1767905456818,-500.0,0.00030136,30]
[401076018,1767905456828,-500.0,0.00030136,30]
[401076019,1767905456838,-500.0,0.00030136,30]
[401076020,1767905456848,-500.0,0.00030136,30]
[401076021,1767905456857,-500.0,0.00030136,30]
[401076022,1767905456867,-500.0,0.00030136,30]
[401076023,1767905456875,-500.0,0.00030136,30]
[401076024,1767905456885,-500.0,0.00030136,30]
[401076025,1767905456893,-500.0,0.00030136,30]
[401076026,1767905456903,-500.0,0.00030136,30]
[401076027,1767905456914,-500.0,0.00030136,30]
[401076028,1767905456925,-500.0,0.00030136,30]
[401076029,1767905456937,-500.0,0.00030136,30]
[401076030,1767905456947,-500.0,0.00030136,30]
[401076031,1767905456956,-500.0,0.00030136,30]
[401076032,1767905456965,-500.0,0.00030136,30]
[401076033,1767905456975,-152.77949599,0.00030136,30]
[401076034,1767905456984,-195.610594,0.00030136,7]
[401076035,1767905456993,-195.610594,0.00030136,7]
[401076036,1767905457002,-195.610594,0.00030136,7]
[401076037,1767905457011,-195.610594,0.00030136,7]
[401076038,1767905457022,-151.0,0.00030136,7]
[401076039,1767905457032,-195.610594,0.00030136,7]
[401076040,1767905457041,-195.610594,0.00030136,7]
[401076041,1767905457051,-195.610594,0.00030136,7]
[401076042,1767905457060,-195.610603,0.00030136,7]
[401076043,1767905457070,-500.0,0.00030136,7]
[401076044,1767905457079,-412.85,0.00030136,7]
[401076045,1767905457088,-412.85,0.00030136,7]
[401076046,1767905457097,-412.85,0.00030136,7]
[401076047,1767905457110,-412.85,0.00030136,7]
[401076048,1767905457120,-500.0,0.00030136,60]
[401076049,1767905457129,-500.0,0.00030136,60]
[401076050,1767905457138,-500.0,0.00030136,60]
[401076051,1767905457148,-258.34773752,0.00030136,60]
[401076052,1767905457157,-500.0,0.00030136,2]
[401076053,1767905457166,-504.10906512,0.00030136,2]
[401076054,1767905457176,-563.95,0.00030136,14]
[401076055,1767905457185,-563.95,0.00030136,14]
[401076056,1767905457194,-563.95,0.00030136,14]
[401076057,1767905457204,-563.95,0.00030136,14]
[401076058,1767905457213,-563.95,0.00030136,14]
[401076059,1767905457222,-563.95,0.00030136,14]
[401076060,1767905457231,-563.95,0.00030136,14]
[401076061,1767905457241,-563.95,0.00030136,14]
[401076062,1767905457250,-563.95,0.00030136,14]
[401076063,1767905457259,-563.95,0.00030136,14]
[401076064,1767905457269,-563.95,0.00030136,14]
[401076065,1767905457279,-563.95,0.00030136,14]
[401076066,1767905457288,-563.95,0.00030136,14]
[401076067,1767905457297,-563.95,0.00030136,14]
[401076068,1767905457306,-563.95,0.00030136,14]
[401076069,1767905457315,-563.95,0.00030136,14]
[401076070,1767905457324,-563.95,0.00030136,14]
[401076071,1767905457333,-563.95,0.00030136,14]
[401076072,1767905457342,-563.95,0.00030136,14]
[401076073,1767905457351,-563.95,0.00030136,14]
[401076074,1767905457360,-563.95,0.00030136,14]
[401076075,1767905457370,-563.95,0.00030136,14]
[401076076,1767905457379,-563.95,0.00030136,14]
[401076077,1767905457390,-564.06513682,0.00030136,14]
[401076078,1767905457399,-500.0,0.00030136,7]
[401076079,1767905457408,-500.0,0.00030136,7]
[401076080,1767905457418,-500.0,0.00030136,7]
[401076081,1767905457429,-500.0,0.00030136,7]
[401076082,1767905457438,-500.0,0.00030136,7]
[401076083,1767905457447,-500.0,0.00030136,7]
[401076084,1767905457456,-500.0,0.00030136,7]
[401076085,1767905457466,-500.0,0.00030136,7]
[401076086,1767905457475,-500.0,0.00030136,7]
[401076087,1767905457484,-500.0,0.00030136,7]
[401076088,1767905457494,-500.0,0.00030136,7]
[401076089,1767905457503,-500.0,0.00030136,7]
[401076090,1767905457512,-500.0,0.00030136,7]
[401076091,1767905457521,-500.0,0.00030136,7]
[401076092,1767905457530,-500.0,0.00030136,7]
[401076093,1767905457540,-500.0,0.00030136,7]
[401076094,1767905457549,-296.04074694,0.00030136,7]
[401076095,1767905457557,-500.0,0.00030136,14]
[401076096,1767905457567,-576.39023583,0.00030136,14]
[401076097,1767905457576,-517.26411692,0.00030136,60]
[401076098,1767905457584,-500.0,0.00030136,100]
[401076099,1767905457594,-500.0,0.00030136,100]
[401076100,1767905457603,-500.0,0.00030136,100]
[401076101,1767905457613,-500.0,0.00030136,100]
[401076102,1767905457622,-500.0,0.00030136,100]
[401076103,1767905457631,-500.0,0.00030136,100]
[401076104,1767905457640,-255.06774883,0.00030136,100]
[401076105,1767905457649,-500.0,0.00030136,2]
[401076106,1767905457658,-500.0,0.00030136,2]
[401076107,1767905457667,-500.0,0.00030136,2]
[401076108,1767905457675,-500.0,0.00030136,2]
[401076109,1767905457684,-497.19383454,0.00030136,2]
[401076110,1767905457697,-2.80616546,0.00030136,2]
[401076111,1767905457706,-500.0,0.00030136,2]
[401076112,1767905457715,-500.0,0.00030136,2]
[401076113,1767905457724,-500.0,0.00030136,2]
[401076114,1767905457733,-500.0,0.00030136,2]
[401076115,1767905457742,-500.0,0.00030136,2]
[401076116,1767905457750,-500.0,0.00030136,2]
[401076117,1767905457759,-500.0,0.00030136,2]
[401076118,1767905457768,-500.0,0.00030136,2]
[401076119,1767905457777,-500.0,0.00030136,2]
[401076120,1767905457786,-500.0,0.00030136,2]
[401076121,1767905457795,-500.0,0.00030136,2]
[401076122,1767905457804,-500.0,0.00030136,2]
[401076123,1767905457813,-500.0,0.00030136,2]
[401076124,1767905457821,-500.0,0.00030136,2]
[401076125,1767905457830,-500.0,0.00030136,2]
[401076126,1767905457839,-500.0,0.00030136,2]
[401076127,1767905457848,-500.0,0.00030136,2]
[401076128,1767905457856,-500.0,0.00030136,2]
[401076129,1767905457865,-620.35771465,0.00030136,2]
[401076130,1767905457875,-500.0,0.00030136,60]
[401076131,1767905457884,-500.0,0.00030136,60]
[401076132,1767905457893,-500.0,0.00030136,60]
[401076133,1767905457903,-500.0,0.00030136,60]
[401076134,1767905457912,-500.0,0.00030136,60]
[401076135,1767905457921,-500.0,0.00030136,2]
[401076136,1767905457930,-500.0,0.00030136,2]
[401076137,1767905457940,-500.0,0.00030136,2]
[401076138,1767905457949,-500.0,0.00030136,2]
[401076139,1767905457958,-500.0,0.00030136,2]
[401076140,1767905457968,-500.0,0.00030136,2]
[401076141,1767905457977,-500.0,0.00030136,2]
[401076142,1767905457985,-307.93703483,0.00030136,2]
[401076143,1767905458111,-600.55324416,0.00030136,2]
[401076144,1767905458121,-185.84971769,0.00030136,30]
[401076145,1767905458131,-500.0,0.00030136,14]
[401076146,1767905458140,-500.0,0.00030136,14]
[401076147,1767905458150,-500.0,0.00030136,14]
[401076148,1767905458159,-500.0,0.00030136,14]
[401076149,1767905458168,-500.0,0.00030136,14]
[401076150,1767905458180,-500.50983515,0.00030136,14]
[401076151,1767905458189,-500.0,0.00030136,30]
[401076152,1767905458198,-158.19492184,0.00030136,30]
[401076153,1767905458208,-1881.87,0.00030136,6]
[401076154,1767905458217,-7251.36838461,0.00030136,3]
[401076155,1767905458229,-1681.53233858,0.00030136,3]
[401076156,1767905458241,-261.58927681,0.00030136,3]
[401076157,1767905458251,-9194.49,0.00030136,3]
[401076158,1767905458261,-1649.65803018,0.00030136,3]
[401076159,1767905458272,-337.2,0.00030136,3]
[401076175,1767906631802,-440.41335325,0.00010305,2]
[401076176,1767906631818,-123.58664675,0.00010305,2]
[401076178,1767906631827,-190.5263366,0.00010305,2]
[401076179,1767906631836,-999.0,0.00010959,2]
[401076181,1767906631845,-1200.0,0.00011055,2]
[401076184,1767906631854,-300.0,0.00011056,2]
[401076186,1767906631863,-300.0,0.00011056,2]
[401076189,1767906631872,-300.0,0.00011056,2]
[401076190,1767906631882,-300.0,0.00011056,2]
[401076194,1767906631891,-251.20562422,0.00011057,2]
[401076197,1767906631904,-4301.20450579,0.00011057,2]
[401076200,1767906631913,-2898.90562648,0.00011059,2]
[401076201,1767906631925,-586.56220887,0.00011059,2]
[401076203,1767906631936,-1496.8897785,0.00011059,2]
[401076204,1767906631947,-643.77140468,0.00011059,2]
[401076209,1767906637952,-474.89827991,0.00011058,2]
[401076210,1767906637962,-7141.41115075,0.00011059,2]
[401076211,1767906638009,-37232.45983072,0.00011059,2]
[401076212,1767906638018,-10000.0,0.00011059,2]
[401076213,1767906638027,-679.6366844,0.00011059,2]
[401076214,1767906638039,-331.473,0.00011278,2]
[401076215,1767906638048,-300.0,0.00011279,2]
[401076216,1767906638058,-300.0,0.00011279,2]
[401076217,1767906638068,-300.0,0.00011279,2]
[401076218,1767906638078,-300.0,0.00011279,2]
[401076219,1767906638087,-300.0,0.00011279,2]
[401076220,1767906638097,-300.0,0.00011279,2]
[401076221,1767906638107,-300.0,0.00011279,2]
[401076222,1767906638117,-300.0,0.00011279,2]
[401076223,1767906638126,-300.0,0.00011279,2]
[401076224,1767906638135,-300.0,0.00011279,2]
[401076225,1767906638145,-300.0,0.00011279,2]
[401076226,1767906638154,-300.0,0.00011279,2]
[401076227,1767906638163,-300.0,0.00011279,2]
[401076228,1767906638173,-300.0,0.00011279,2]
[401076229,1767906638182,-300.0,0.00011279,2]
[401076230,1767906638192,-600.0,0.00011504,2]
[401076231,1767906638201,-151.0,0.00012,2]
[401076232,1767906638211,-151.0,0.00012,2]
[401076233,1767906638220,-151.0,0.00012,2]
[401076234,1767906638230,-151.0,0.00012,2]
[401076235,1767906638239,-420.0,0.00012149,2]
[401076236,1767906638248,-5058.79910613,0.0001217,2]
[401076237,1767906638258,-720.0,0.00012654,2]
[401076238,1767906638268,-9509.40388114,0.000129,2]
[401076239,1767906638278,-296.42263658,0.00013057,2]
[401076240,1767906638287,-500.0,0.00013273,2]
[401076241,1767906638296,-500.0,0.00013273,2]
[401076242,1767906638306,-151.97322479,0.00013273,2]
[401076243,1767906638316,-499.45845722,0.00013273,2]
[401076244,1767906638325,-500.0,0.00013273,2]
[401076245,1767906638335,-500.0,0.00013273,2]
[401076246,1767906638344,-500.0,0.00013273,2]
[401076247,1767906638353,-500.0,0.00013273,2]
[401076248,1767906638363,-500.0,0.00013273,2]
[401076249,1767906638372,-500.0,0.00013273,2]
[401076250,1767906638381,-500.0,0.00013273,2]
[401076251,1767906638390,-500.0,0.00013273,2]
[401076252,1767906638402,-500.0,0.00013273,2]
[401076253,1767906638412,-587.0,0.00013349,2]
[401076254,1767906638422,-300.0,0.00013673,2]
[401076255,1767906638431,-500.0,0.00013699,2]
[401076256,1767906638442,-500.0,0.00013699,2]
[401076257,1767906638453,-500.0,0.00013699,2]
[401076258,1767906638463,-500.0,0.00013699,2]
[401076259,1767906638473,-500.0,0.00013699,2]
[401076260,1767906638482,-500.0,0.00013699,2]
[401076261,1767906638492,-500.0,0.00013699,2]
[401076262,1767906638501,-500.0,0.00013699,2]
[401076263,1767906638510,-580.84036522,0.00013699,2]
[401076264,1767906638525,-243.13183042,0.00013699,2]
[401076265,1767906638534,-500.0,0.00013699,2]
[401076266,1767906638544,-500.0,0.00013699,2]
[401076267,1767906638553,-500.0,0.00013699,2]
[401076268,1767906638562,-500.0,0.00013699,2]
[401076269,1767906638572,-500.0,0.00013699,2]
[401076270,1767906638582,-500.0,0.00013699,2]
[401076271,1767906638591,-500.0,0.00013699,2]
[401076272,1767906638600,-417.18064855,0.00013699,2]
[401076273,1767906638610,-500.0,0.00013699,2]
[401076274,1767906638619,-500.0,0.00013699,2]
[401076275,1767906638628,-500.0,0.00013699,2]
[401076276,1767906638637,-158.2,0.00013699,2]
[401076277,1767906638648,-500.0,0.00013699,2]
[401076278,1767906638657,-500.0,0.00013699,2]
[401076279,1767906638667,-500.0,0.00013699,2]
[401076280,1767906638676,-500.0,0.00013699,2]
[401076281,1767906638689,-500.0,0.00013699,2]
[401076282,1767906638698,-500.0,0.00013699,2]
[401076283,1767906638708,-500.0,0.00013699,2]
[401076284,1767906638717,-500.0,0.00013699,2]
[401076285,1767906638727,-165.20381649,0.00013699,2]
[401076286,1767906638736,-500.0,0.00013699,2]
[401076287,1767906638747,-500.0,0.00013699,2]
[401076288,1767906638756,-500.0,0.00013699,2]
[401076289,1767906638765,-587.90016754,0.00013699,2]
[401076290,1767906638775,-500.0,0.00013699,2]
[401076291,1767906638784,-500.0,0.00013699,2]
[401076292,1767906638794,-500.0,0.00013699,2]
[401076293,1767906638804,-500.0,0.00013699,2]
[401076294,1767906638813,-200.34918809,0.00013699,2]
[401076295,1767906638822,-500.0,0.00013699,2]
[401076296,1767906638832,-500.0,0.00013699,2]
[401076297,1767906638840,-500.0,0.00013699,2]
[401076298,1767906638850,-500.0,0.00013699,2]
[401076299,1767906638859,-500.0,0.00013699,2]
[401076300,1767906638868,-500.0,0.00013699,2]
[401076301,1767906638879,-500.0,0.00013699,2]
[401076302,1767906638889,-500.0,0.00013699,2]
[401076303,1767906638898,-500.0,0.00013699,2]
[401076304,1767906638907,-500.0,0.00013699,2]
[401076305,1767906638917,-500.0,0.00013699,2]
[401076306,1767906638926,-500.0,0.00013699,2]
[401076307,1767906638935,-500.0,0.00013699,2]
[401076308,1767906638945,-500.0,0.00013699,2]
[401076309,1767906638955,-535.32110094,0.00013699,2]
[401076310,1767906638964,-500.0,0.00013699,2]
[401076311,1767906638973,-316.43946894,0.00013699,2]
[401076312,1767906638983,-498.98190963,0.00013821,2]
[401076313,1767906638992,-512.87309708,0.00013821,2]
[401076314,1767906639001,-1000.0,0.00013821,2]
[401076315,1767906639011,-500.0,0.00013821,2]
[401076316,1767906639020,-1000.0,0.00013821,2]
[401076317,1767906639030,-1000.0,0.00013821,2]
[401076318,1767906639040,-910.05192145,0.00013821,2]
[401076319,1767906639050,-1000.0,0.00013821,2]
[401076320,1767906639059,-1000.0,0.00013821,2]
[401076321,1767906639069,-1000.0,0.00013821,2]
[401076322,1767906639079,-1000.0,0.00013821,2]
[401076323,1767906639088,-864.0,0.00013919,2]
[401076324,1767906639098,-600.0,0.00014221,2]
[401076325,1767906639108,-316.1319489,0.00014247,2]
[401076326,1767906639118,-500.0,0.00014247,2]
[401076327,1767906639127,-500.0,0.00014247,2]
[401076328,1767906639137,-500.54648237,0.00014247,2]
[401076329,1767906639146,-500.0,0.00014247,2]
[401076330,1767906639156,-500.0,0.00014247,2]
[401076331,1767906639167,-500.0,0.00014247,2]
[401076332,1767906639176,-1000.0,0.00014247,2]
[401076333,1767906639186,-500.68920715,0.00014247,2]
[401076334,1767906639196,-1000.0,0.00014247,2]
[401076335,1767906639205,-500.0,0.00014247,2]
[401076336,1767906639214,-503.80919542,0.00014247,2]
[401076337,1767906639223,-1000.0,0.00014247,2]
[401076338,1767906639233,-500.0,0.00014247,2]
[401076339,1767906639242,-1000.0,0.00014247,2]
[401076340,1767906639252,-1000.0,0.00014247,2]
[401076341,1767906639261,-1000.0,0.00014247,2]
[401076342,1767906639270,-1144.01857865,0.00014247,2]
[401076343,1767906639279,-1000.0,0.00014247,2]
[401076344,1767906639289,-1004.51727604,0.00014247,2]
[401076345,1767906639298,-369.1892099,0.00014368,2]
[401076346,1767906639307,-1500.0,0.00014368,2]
[401076347,1767906639316,-1500.0,0.00014368,2]
[401076348,1767906639326,-1500.0,0.00014368,2]
[401076349,1767906639335,-1500.0,0.00014368,2]
[401076350,1767906639344,-1500.0,0.00014368,2]
[401076351,1767906639353,-1500.0,0.00014368,2]
[401076352,1767906639363,-5000.0,0.0001451,2]
[401076353,1767906639372,-823.0,0.00014668,2]
[401076354,1767906639380,-900.0,0.00014768,2]
[401076355,1767906639390,-1500.0,0.00014795,2]
[401076356,1767906639402,-1500.0,0.00014795,2]
[401076357,1767906639411,-1500.0,0.00014795,2]
[401076358,1767906639420,-1500.0,0.00014795,2]
[401076359,1767906639430,-1500.0,0.00014795,2]
[401076360,1767906639440,-634.65901332,0.00014795,2]
[401076361,1767906639449,-151.36300024,0.000149,2]
[401076362,1767906639458,-151.36300024,0.000149,2]
[401076363,1767906639467,-151.36300024,0.000149,2]
[401076364,1767906639478,-2000.0,0.00014916,2]
[401076365,1767906639488,-2000.0,0.00014916,2]
[401076366,1767906639497,-2000.0,0.00014916,2]
[401076367,1767906639506,-896.00511375,0.00014916,2]
[401076368,1767906639516,-2000.0,0.00014916,2]
[401076369,1767906639664,-2000.0,0.00014916,2]
[401076372,1767906639674,-341.63964894,0.00015057,2]
[401076374,1767906639684,-170.598297,0.00015068,2]
[401076376,1767906639693,-800.0,0.00015068,2]
[401076378,1767906639702,-272.8580354,0.00015166,2]
[401076379,1767906639712,-1000.0,0.00015311,2]
[401076381,1767906639721,-1200.0,0.00015316,2]
[401076382,1767906639730,-2000.0,0.00015342,2]
[401076383,1767906639739,-2000.0,0.00015342,2]
[401076384,1767906639748,-2000.0,0.00015342,2]
[401076385,1767906639758,-2000.0,0.00015342,2]
[401076386,1767906639767,-2000.0,0.00015342,2]
[401076388,1767906639776,-1000.0,0.000154,2]
[401076390,1767906639786,-2500.0,0.00015464,2]
[401076392,1767906639795,-2500.0,0.00015464,2]
[401076394,1767906639804,-532.8743507,0.00015464,2]
[401076396,1767906639814,-2500.0,0.00015464,2]
[401076398,1767906639823,-2500.0,0.00015464,2]
[401076400,1767906639832,-1500.0,0.00015864,2]
[401076402,1767906639841,-2071.48096018,0.0001589,2]
[401076404,1767906639850,-1586.48750274,0.0001589,2]
[401076406,1767906639859,-2500.0,0.0001589,2]
[401076408,1767906639868,-2500.0,0.0001589,2]
[401076410,1767906639878,-2500.0,0.0001589,2]
[401076412,1767906639887,-3000.0,0.00016012,2]
[401076414,1767906639896,-3000.0,0.00016012,2]
[401076416,1767906639906,-3000.0,0.00016012,2]
[401076418,1767906639915,-509.97635533,0.00016012,2]
[401076419,1767906639924,-1152.0,0.00016118,2]
[401076420,1767906639933,-1600.0,0.00016164,2]
[401076421,1767906639942,-1800.0,0.00016412,2]
[401076422,1767906639951,-500.0,0.00016438,2]
[401076423,1767906639960,-164.10892372,0.00016438,2]
[401076424,1767906639969,-3000.0,0.00016438,2]
[401076425,1767906639978,-3000.0,0.00016438,2]
[401076426,1767906639987,-3000.0,0.00016438,2]
[401076427,1767906639996,-2925.17937214,0.0001656,2]
[401076428,1767906640005,-498.72100815,0.0001656,2]
[401076429,1767906640015,-3500.0,0.0001656,2]
[401076430,1767906640024,-1000.0,0.00016842,2]
[401076431,1767906640033,-244.0,0.00016842,2]
[401076432,1767906640043,-2100.0,0.0001696,2]
[401076433,1767906640052,-3500.0,0.00016986,2]
[401076434,1767906640061,-3500.0,0.00016986,2]
[401076435,1767906640070,-3500.0,0.00016986,2]
[401076436,1767906640079,-386.8566613,0.00017057,2]
[401076437,1767906640089,-4000.0,0.00017108,2]
[401076438,1767906640099,-2400.0,0.0001726,2]
[401076439,1767906640108,-4323.22837725,0.00017412,2]
[401076440,1767906640117,-1807.44944301,0.00017508,2]
[401076441,1767906640126,-4000.0,0.00017534,2]
[401076442,1767906640135,-4000.0,0.00017534,2]
[401076443,1767906640144,-4000.0,0.00017534,2]
[401076444,1767906640153,-4500.0,0.00017656,2]
[401076445,1767906640162,-1613.0,0.00017711,2]
[401076446,1767906640172,-4500.0,0.00018082,2]
[401076447,1767906640181,-3395.64095761,0.00018082,2]
[401076448,1767906640190,-4500.0,0.00018082,2]
[401076449,1767906640201,-5000.0,0.00018204,2]
[401076450,1767906640210,-1899.64931956,0.00018356,2]
[401076451,1767906640219,-1000.0,0.00018527,2]
[401076453,1767906640228,-492.0,0.00018527,2]
[401076455,1767906640238,-5000.0,0.0001863,2]
[401076457,1767906640250,-2167.21136956,0.0001863,2]
[401076459,1767906640259,-1531.92126105,0.00018752,2]
[401076461,1767906640269,-250.19474322,0.00018959,3]
[401076463,1767906640278,-100000.0,0.0001899,2]
[401076465,1767906640287,-432.07367366,0.00019057,2]
[401076467,1767906640297,-5500.0,0.00019178,2]
[401076469,1767906640306,-18863.66,0.000192,2]
[401076471,1767906640316,-167.4,0.000192,2]
[401076473,1767906640325,-2258.0,0.00019461,2]
[401076475,1767906640334,-1005.37,0.000195,2]
[401076477,1767906640343,-164.0,0.000195,2]
[401076479,1767906640351,-162.94,0.000195,2]
[401076481,1767906640361,-170.598297,0.00019635,2]
[401076483,1767906640371,-6000.0,0.00019726,2]
[401076485,1767906640381,-910.73318347,0.00019989,2]
[401076487,1767906640390,-910.73318347,0.00019989,2]
[401076489,1767906640402,-910.73318347,0.00019989,2]
[401076491,1767906640411,-910.73318347,0.00019989,2]
[401076493,1767906640421,-431.87152532,0.00019989,2]
[401076495,1767906640430,-910.73318347,0.00019989,2]
[401076497,1767906640440,-910.73318347,0.00019989,2]
[401076499,1767906640450,-910.73318347,0.00019989,2]
[401076501,1767906640459,-910.73318347,0.00019989,2]
[401076503,1767906640468,-910.73318347,0.00019989,2]
[401076505,1767906640480,-910.73318347,0.00019989,2]
[401076507,1767906640489,-910.73318347,0.00019989,2]
[401076509,1767906640498,-910.73318347,0.00019989,2]
[401076511,1767906640507,-910.73318347,0.00019989,2]
[401076513,1767906640516,-910.73318347,0.00019989,2]
[401076515,1767906640525,-910.73318347,0.00019989,2]
[401076517,1767906640535,-910.73318347,0.00019989,2]
[401076519,1767906640544,-910.73318347,0.00019989,2]
[401076521,1767906640554,-1003.0,0.0002,2]
[401076523,1767906640563,-300.26582625,0.0002,2]
[401076525,1767906640572,-419.6,0.00020171,2]
[401076528,1767906640582,-6500.0,0.00020274,2]
[401076530,1767906640591,-1000.0,0.00020379,2]
[401076532,1767906640600,-791.0,0.00020379,2]
[401076534,1767906640610,-1041.66666667,0.00020507,2]
[401076536,1767906640620,-6505.53140952,0.00020822,2]
[401076538,1767906640629,-477.29068602,0.00021057,2]
[401076540,1767906640638,-200.0,0.00021151,4]
[401076542,1767906640648,-419.6,0.00021357,2]
[401076544,1767906640658,-1012.0,0.00021385,2]
[401076546,1767906640667,-18863.66,0.000214,2]
[401076548,1767906640677,-455.55,0.000224,2]
[401076550,1767906640687,-518.09,0.000224,7]
[401076552,1767906640696,-2000.51544348,0.00022413,2]
[401076554,1767906640706,-1000.0,0.00022417,10]
[401076556,1767906640715,-1000.0,0.00022417,10]